fUSD/lending_fUSD_20240819
["ID","MTS","AMOUNT","RATE_DAILY","PERIOD"]
[335261563,1724054306922,-500.0,0.00010997,2]
[335261564,1724054306952,-769.05,0.00010997,2]
[335261565,1724054306982,-500.0,0.00010997,2]
[335261566,1724054307012,-500.0,0.00010997,2]
[335261567,1724054307043,-500.0,0.00010997,2]
[335261568,1724054307074,-1109.66,0.00010997,2]
[335261569,1724054307105,-1650.95,0.00010997,2]
[335261570,1724054307136,-500.0,0.00010997,2]
[335261571,1724054307169,-500.0,0.00010997,2]
[335261572,1724054307201,-12068.38,0.00010997,2]
[335261573,1724054307231,-198.57034411,0.00010997,2]
[335261574,1724054307261,-1143.12,0.00010997,2]
[335261575,1724054307295,-450.01424808,0.00010997,2]
[335261576,1724054307324,-500.0,0.00010997,2]
[335261577,1724054307357,-2834.64,0.00010997,2]
[335261578,1724054307390,-500.0,0.00010998,2]
[335261579,1724054307421,-500.0,0.00010998,2]
[335261580,1724054307454,-532.45641951,0.00010998,2]
[335261581,1724054307486,-500.0,0.00010998,2]
[335261582,1724054307517,-500.0,0.00010998,2]
[335261583,1724054307548,-518.94673628,0.00010998,2]
[335261584,1724054307579,-500.0,0.00010998,2]
[335261585,1724054307610,-396.31101614,0.00010998,2]
[335261586,1724054307869,-500.0,0.00010998,2]
[335261587,1724054307906,-500.0,0.00010998,2]
[335261588,1724054307935,-631.93651352,0.00010998,2]
[335261589,1724054307962,-500.0,0.00010998,2]
[335261590,1724054307989,-500.0,0.00010998,2]
[335261591,1724054308016,-530.58271021,0.00010998,2]
[335261592,1724054308047,-500.0,0.00010998,2]
[335261593,1724054308078,-500.0,0.00010998,2]
[335261594,1724054308105,-591.34,0.00010998,2]
[335261595,1724054308132,-591.34,0.00010998,2]
[335261596,1724054308158,-591.34,0.00010998,2]
[335261597,1724054308185,-500.0,0.00010998,2]
[335261598,1724054308211,-500.0,0.00010998,2]
[335261599,1724054308237,-500.0,0.00010998,2]
[335261600,1724054308264,-500.0,0.00010998,2]
[335261601,1724054308292,-1066.31,0.00010998,2]
[335261602,1724054308318,-1066.31,0.00010998,2]
[335261603,1724054308345,-1066.31,0.00010998,2]
[335261604,1724054308379,-500.0,0.00010998,2]
[335261605,1724054308409,-500.0,0.00010998,2]
[335261606,1724054308437,-500.0,0.00010998,2]
[335261607,1724054308465,-500.0,0.00010998,2]
[335261608,1724054308494,-500.0,0.00010998,2]
[335261609,1724054308522,-500.0,0.00010998,2]
[335261610,1724054308551,-500.0,0.00010998,2]
[335261611,1724054308579,-500.0,0.00010998,2]
[335261612,1724054308607,-500.0,0.00010998,2]
[335261613,1724054308633,-500.0,0.00010998,2]
[335261614,1724054308661,-500.0,0.00010998,2]
[335261615,1724054308688,-500.0,0.00010998,2]
[335261616,1724054308715,-500.0,0.00010998,2]
[335261617,1724054308742,-500.0,0.00010998,2]
[335261618,1724054308769,-500.0,0.00010998,2]
[335261619,1724054308796,-500.0,0.00010998,2]
[335261620,1724054308823,-500.0,0.00010998,2]
[335261621,1724054308850,-500.0,0.00010998,2]
[335261622,1724054308877,-500.0,0.00010998,2]
[335261623,1724054308905,-500.0,0.00010998,2]
[335261624,1724054308931,-500.0,0.00010998,2]
[335261625,1724054308958,-500.0,0.00010998,2]
[335261626,1724054308991,-500.0,0.00010998,2]
[335261627,1724054309044,-18785.270908,0.00010998,2]
[335261628,1724054309089,-245.291748,0.00010998,2]
[335261629,1724054309140,-290.812883,0.00010998,2]
[335261630,1724054309192,-10002.799193,0.00010998,2]
[335261631,1724054309239,-5900.146862,0.00010998,2]
[335261632,1724054309266,-500.0,0.00010998,2]
[335261633,1724054309297,-500.0,0.00010998,2]
[335261634,1724054309324,-500.0,0.00010998,2]
[335261635,1724054309350,-500.0,0.00010998,2]
[335261636,1724054309376,-500.0,0.00010998,2]
[335261637,1724054309402,-500.0,0.00010998,2]
[335261638,1724054309429,-500.0,0.00010998,2]
[335261639,1724054309456,-500.0,0.00010998,2]
[335261640,1724054309483,-500.0,0.00010998,2]
[335261641,1724054309510,-500.0,0.00010998,2]
[335261642,1724054309537,-500.0,0.00010998,2]
[335261643,1724054309566,-500.0,0.00010998,2]
[335261644,1724054309593,-500.0,0.00010998,2]
[335261645,1724054309621,-500.0,0.00010998,2]
[335261646,1724054309648,-500.0,0.00010998,2]
[335261647,1724054309675,-967.28,0.00010998,2]
[335261648,1724054309801,-967.28,0.00010998,2]
[335261649,1724054309828,-967.28,0.00010998,2]
[335261650,1724054309855,-967.28,0.00010998,2]
[335261651,1724054309884,-500.0,0.00010998,2]
[335261652,1724054309911,-500.0,0.00010998,2]
[335261653,1724054309938,-500.0,0.00010998,2]
[335261654,1724054309964,-500.0,0.00010998,2]
[335261655,1724054309991,-500.0,0.00010998,2]
[335261656,1724054310017,-500.0,0.00010998,2]
[335261657,1724054310044,-500.0,0.00010998,2]
[335261658,1724054310071,-500.0,0.00010998,2]
[335261659,1724054310098,-500.0,0.00010998,2]
[335261660,1724054310126,-500.0,0.00010998,2]
[335261661,1724054310153,-982.07,0.00010998,2]
[335261662,1724054310181,-982.07,0.00010998,2]
[335261663,1724054310208,-982.07,0.00010998,2]
[335261664,1724054310235,-982.07,0.00010998,2]
[335261665,1724054310262,-500.0,0.00010998,2]
[335261666,1724054310295,-500.0,0.00010998,2]
[335261667,1724054310322,-500.0,0.00010998,2]
[335261668,1724054310353,-1528.07,0.00010998,2]
[335261669,1724054310381,-1528.07,0.00010998,2]
[335261670,1724054310407,-1528.07,0.00010998,2]
[335261671,1724054310434,-500.0,0.00010998,2]
[335261672,1724054310461,-863.16,0.00010998,2]
[335261673,1724054310487,-500.0,0.00010998,2]
[335261674,1724054310513,-863.16,0.00010998,2]
[335261675,1724054310539,-500.0,0.00010998,2]
[335261676,1724054310566,-863.16,0.00010998,2]
[335261677,1724054310593,-863.16,0.00010998,2]
[335261678,1724054310620,-500.0,0.00010998,2]
[335261679,1724054310647,-500.0,0.00010998,2]
[335261680,1724054310673,-500.0,0.00010998,2]
[335261681,1724054310701,-500.0,0.00010998,2]
[335261682,1724054310727,-500.0,0.00010998,2]
[335261683,1724054310753,-500.0,0.00010998,2]
[335261684,1724054310780,-462.7,0.00010998,2]
[335261685,1724054310807,-500.0,0.00010998,2]
[335261686,1724054310834,-500.0,0.00010998,2]
[335261687,1724054310860,-500.0,0.00010998,2]
[335261688,1724054310886,-500.0,0.00010998,2]
[335261689,1724054310913,-500.0,0.00010998,2]
[335261690,1724054310939,-500.0,0.00010998,2]
[335261691,1724054310966,-500.0,0.00010998,2]
[335261692,1724054310992,-500.0,0.00010998,2]
[335261693,1724054311018,-500.0,0.00010998,2]
[335261694,1724054311044,-500.0,0.00010998,2]
[335261695,1724054311070,-615.43,0.00010998,2]
[335261696,1724054311096,-615.43,0.00010998,2]
[335261697,1724054311127,-615.43,0.00010998,2]
[335261698,1724054311155,-615.43,0.00010998,2]
[335261699,1724054311181,-500.0,0.00010998,2]
[335261700,1724054311207,-500.0,0.00010998,2]
[335261701,1724054311234,-500.0,0.00010998,2]
[335261702,1724054311260,-500.0,0.00010998,2]
[335261703,1724054311287,-500.0,0.00010998,2]
[335261704,1724054311318,-500.0,0.00010998,2]
[335261705,1724054311345,-500.0,0.00010998,2]
[335261706,1724054311373,-500.0,0.00010998,2]
[335261707,1724054311400,-1014.22,0.00010998,2]
[335261708,1724054311426,-1014.22,0.00010998,2]
[335261709,1724054311452,-1014.22,0.00010998,2]
[335261710,1724054311478,-1014.22,0.00010998,2]
[335261711,1724054311505,-2417.46,0.00010998,2]
[335261712,1724054311531,-2417.46,0.00010998,2]
[335261713,1724054311661,-2417.46,0.00010998,2]
[335261714,1724054311689,-2417.46,0.00010998,2]
[335261715,1724054311717,-500.0,0.00010998,2]
[335261716,1724054311744,-500.0,0.00010998,2]
[335261717,1724054311771,-500.0,0.00010998,2]
[335261718,1724054311797,-500.0,0.00010998,2]
[335261719,1724054311823,-500.0,0.00010998,2]
[335261720,1724054311850,-500.0,0.00010998,2]
[335261721,1724054311877,-500.0,0.00010998,2]
[335261722,1724054311903,-500.0,0.00010998,2]
[335261723,1724054311929,-500.0,0.00010998,2]
[335261724,1724054311955,-769.05,0.00010998,2]
[335261725,1724054311983,-769.05,0.00010998,2]
[335261726,1724054312009,-769.05,0.00010998,2]
[335261727,1724054312035,-769.05,0.00010998,2]
[335261728,1724054312062,-500.0,0.00010998,2]
[335261729,1724054312088,-500.0,0.00010998,2]
[335261730,1724054312115,-500.0,0.00010998,2]
[335261731,1724054312141,-500.0,0.00010998,2]
[335261732,1724054312167,-500.0,0.00010998,2]
[335261733,1724054312193,-500.0,0.00010998,2]
[335261734,1724054312220,-500.0,0.00010998,2]
[335261735,1724054312246,-1109.66,0.00010998,2]
[335261736,1724054312279,-1109.66,0.00010998,2]
[335261737,1724054312305,-1109.66,0.00010998,2]
[335261738,1724054312332,-1650.95,0.00010998,2]
[335261739,1724054312360,-1650.95,0.00010998,2]
[335261740,1724054312386,-1650.95,0.00010998,2]
[335261741,1724054312414,-1650.95,0.00010998,2]
[335261742,1724054312442,-500.0,0.00010998,2]
[335261743,1724054312468,-500.0,0.00010998,2]
[335261744,1724054312495,-500.0,0.00010998,2]
[335261745,1724054312522,-500.0,0.00010998,2]
[335261746,1724054312549,-500.0,0.00010998,2]
[335261747,1724054312576,-500.0,0.00010998,2]
[335261748,1724054312606,-301.8,0.00010998,2]
[335261749,1724054312642,-12068.38,0.00010998,2]
[335261750,1724054312672,-12068.38,0.00010998,2]
[335261751,1724054312701,-12068.38,0.00010998,2]
[335261752,1724054312729,-12068.38,0.00010998,2]
[335261753,1724054312756,-1143.12,0.00010998,2]
[335261754,1724054312784,-1143.12,0.00010998,2]
[335261755,1724054312811,-1143.12,0.00010998,2]
[335261756,1724054312838,-1143.12,0.00010998,2]
[335261757,1724054312864,-500.0,0.00010998,2]
[335261758,1724054312892,-218.08137543,0.00010998,2]
[335261759,1724054312918,-2834.64,0.00010998,2]
[335261760,1724054312948,-2834.64,0.00010998,2]
[335261761,1724054312975,-2262.40657797,0.00010999,2]
[335261762,1724054313002,-8730.97955761,0.00010999,2]
[335261763,1724054313029,-607.44900665,0.00010999,2]
[335261764,1724054313055,-500.0,0.00010999,2]
[335261765,1724054313082,-500.0,0.00010999,2]
[335261766,1724054313115,-336.48849987,0.00010999,2]
[335261767,1724054313143,-500.0,0.00010999,2]
[335261768,1724054313172,-500.0,0.00010999,2]
[335261769,1724054313200,-500.0,0.00010999,2]
[335261770,1724054313228,-500.0,0.00010999,2]
[335261771,1724054313255,-500.0,0.00010999,2]
[335261772,1724054313285,-253.85,0.00010999,2]
[335261773,1724054313313,-591.34,0.00010999,2]
[335261774,1724054313342,-591.34,0.00010999,2]
[335261775,1724054313369,-500.0,0.00010999,2]
[335261776,1724054313399,-150.25450808,0.00010999,2]
[335261777,1724054313426,-456.11,0.00010999,2]
[335261778,1724054313564,-591.34,0.00010999,2]
[335261779,1724054313593,-591.34,0.00010999,2]
[335261780,1724054313621,-591.34,0.00010999,2]
[335261781,1724054313649,-591.34,0.00010999,2]
[335261782,1724054313682,-591.34,0.00010999,2]
[335261783,1724054313720,-591.34,0.00010999,2]
[335261784,1724054313811,-591.34,0.00010999,2]
[335261785,1724054313935,-591.34,0.00010999,2]
[335261786,1724054313970,-591.34,0.00010999,2]
[335261787,1724054313999,-591.34,0.00010999,2]
[335261788,1724054314027,-591.34,0.00010999,2]
[335261789,1724054314055,-500.0,0.00010999,2]
[335261790,1724054314083,-591.34,0.00010999,2]
[335261791,1724054314112,-500.0,0.00010999,2]
[335261792,1724054314139,-591.34,0.00010999,2]
[335261793,1724054314166,-500.0,0.00010999,2]
[335261794,1724054314193,-591.34,0.00010999,2]
[335261795,1724054314221,-591.34,0.00010999,2]
[335261796,1724054314252,-500.0,0.00010999,2]
[335261797,1724054314283,-591.34,0.00010999,2]
[335261798,1724054314312,-620.93,0.00010999,2]
[335261799,1724054314341,-591.34,0.00010999,2]
[335261800,1724054314373,-591.44039614,0.00010999,2]
[335261801,1724054314400,-1066.31,0.00010999,2]
[335261802,1724054314426,-1066.31,0.00010999,2]
[335261803,1724054314454,-1066.31,0.00010999,2]
[335261804,1724054314483,-500.0,0.00010999,2]
[335261805,1724054314512,-1066.31,0.00010999,2]
[335261806,1724054314539,-500.0,0.00010999,2]
[335261807,1724054314565,-1066.31,0.00010999,2]
[335261808,1724054314593,-500.0,0.00010999,2]
[335261809,1724054314620,-1066.31,0.00010999,2]
[335261810,1724054314649,-500.0,0.00010999,2]
[335261811,1724054314678,-1066.31,0.00010999,2]
[335261812,1724054314709,-500.0,0.00010999,2]
[335261813,1724054314736,-500.0,0.00010999,2]
[335261814,1724054314764,-1066.31,0.00010999,2]
[335261815,1724054314791,-500.0,0.00010999,2]
[335261816,1724054314818,-1066.31,0.00010999,2]
[335261817,1724054314847,-500.0,0.00010999,2]
[335261818,1724054314875,-1066.31,0.00010999,2]
[335261819,1724054314902,-1066.31,0.00010999,2]
[335261820,1724054314929,-500.0,0.00010999,2]
[335261821,1724054314956,-1066.31,0.00010999,2]
[335261822,1724054314983,-500.0,0.00010999,2]
[335261823,1724054315008,-1066.31,0.00010999,2]
[335261824,1724054315036,-500.0,0.00010999,2]
[335261825,1724054315062,-1066.31,0.00010999,2]
[335261826,1724054315089,-500.0,0.00010999,2]
[335261827,1724054315116,-1066.31,0.00010999,2]
[335261828,1724054315144,-500.0,0.00010999,2]
[335261829,1724054315170,-1066.31,0.00010999,2]
[335261830,1724054315196,-500.0,0.00010999,2]
[335261831,1724054315241,-500.0,0.00010999,2]
[335261832,1724054315292,-1066.31,0.00010999,2]
[335261833,1724054315340,-199.5608452,0.00010999,2]
[335261834,1724054315419,-1066.31,0.00010999,2]
[335261835,1724054315475,-1066.31,0.00010999,2]
[335261836,1724054315502,-1066.48705986,0.00010999,2]
[335261837,1724054315530,-500.0,0.00010999,2]
[335261838,1724054315557,-223.58411118,0.00010999,2]
[335261839,1724054315584,-500.0,0.00010999,2]
[335261840,1724054315612,-500.0,0.00010999,2]
[335261841,1724054315638,-500.0,0.00010999,2]
[335261842,1724054315665,-500.0,0.00010999,2]
[335261843,1724054315800,-500.0,0.00010999,2]
[335261844,1724054315828,-378.3,0.00010999,2]
[335261845,1724054315858,-189.05704296,0.00010999,2]
[335261846,1724054315886,-500.0,0.00010999,2]
[335261847,1724054315914,-500.0,0.00010999,2]
[335261848,1724054315941,-500.0,0.00010999,2]
[335261849,1724054315968,-500.0,0.00010999,2]
[335261850,1724054315995,-500.0,0.00010999,2]
[335261851,1724054316023,-380.56532549,0.00010999,2]
[335261852,1724054316052,-500.0,0.00010999,2]
[335261853,1724054316080,-500.0,0.00010999,2]
[335261854,1724054316109,-500.0,0.00010999,2]
[335261855,1724054316136,-500.0,0.00010999,2]
[335261856,1724054316165,-500.0,0.00010999,2]
[335261857,1724054316193,-500.0,0.00010999,2]
[335261858,1724054316220,-500.0,0.00010999,2]
[335261859,1724054316247,-500.0,0.00010999,2]
[335261860,1724054316273,-412.73140117,0.00010999,2]
[335261861,1724054316306,-500.0,0.00010999,2]
[335261862,1724054316334,-288.8409656,0.00010999,2]
[335261863,1724054316363,-500.0,0.00010999,2]
[335261864,1724054316391,-491.01734123,0.00010999,2]
[335261865,1724054316419,-500.0,0.00010999,2]
[335261866,1724054316448,-500.0,0.00010999,2]
[335261867,1724054316475,-408.4,0.00010999,2]
[335261868,1724054316502,-18785.270908,0.00010999,2]
[335261869,1724054316529,-18785.270908,0.00010999,2]
[335261870,1724054316556,-18785.270908,0.00010999,2]
[335261871,1724054316584,-18785.270908,0.00010999,2]
[335261872,1724054316618,-18785.270908,0.00010999,2]
[335261873,1724054316645,-18785.270908,0.00010999,2]
[335261874,1724054316673,-18785.270908,0.00010999,2]
[335261875,1724054316701,-18785.270908,0.00010999,2]
[335261876,1724054316729,-18785.270908,0.00010999,2]
[335261877,1724054316756,-18785.270908,0.00010999,2]
[335261878,1724054316783,-245.291748,0.00010999,2]
[335261879,1724054316810,-245.291748,0.00010999,2]
[335261880,1724054316838,-290.812883,0.00010999,2]
[335261881,1724054316866,-245.291748,0.00010999,2]
[335261882,1724054316893,-290.812883,0.00010999,2]
[335261883,1724054316920,-245.291748,0.00010999,2]
[335261884,1724054316946,-290.812883,0.00010999,2]
[335261885,1724054316973,-245.291748,0.00010999,2]
[335261886,1724054317000,-290.812883,0.00010999,2]
[335261887,1724054317030,-245.291748,0.00010999,2]
[335261888,1724054317057,-290.812883,0.00010999,2]
[335261889,1724054317085,-10002.799193,0.00010999,2]
[335261890,1724054317118,-245.291748,0.00010999,2]
[335261891,1724054317170,-290.812883,0.00010999,2]
[335261892,1724054317223,-10002.799193,0.00010999,2]
[335261893,1724054317274,-245.291748,0.00010999,2]
[335261894,1724054317324,-290.812883,0.00010999,2]
[335261895,1724054317373,-10002.799193,0.00010999,2]
[335261896,1724054317400,-245.291748,0.00010999,2]
[335261897,1724054317427,-290.812883,0.00010999,2]
[335261898,1724054317453,-245.291748,0.00010999,2]
[335261899,1724054317480,-290.812883,0.00010999,2]
[335261900,1724054317508,-10002.799193,0.00010999,2]
[335261901,1724054317536,-290.812883,0.00010999,2]
[335261902,1724054317563,-10002.799193,0.00010999,2]
[335261903,1724054317589,-10002.799193,0.00010999,2]
[335261904,1724054317618,-10002.799193,0.00010999,2]
[335261905,1724054317644,-10002.799193,0.00010999,2]
[335261906,1724054317671,-4322.19395172,0.00010999,2]
[335261907,1724054535628,500.0,9.079e-05,2]
[335261909,1724054726012,214.17,8.393e-05,2]
[335261910,1724054736409,-188.97,0.00010356,2]
[335261911,1724054736434,-302.4,0.00010464,2]
[335261912,1724054736456,-214.17,0.00010657,2]
[335261913,1724054736479,-155.0,0.00010888,2]
[335261914,1724054736502,-802.04083643,0.0001089,2]
[335261915,1724054736528,-1084.3576,0.0001089,2]
[335261916,1724054736551,-9281.7973,0.00010898,2]
[335261917,1724054736572,-5833.2027,0.00010898,2]
[335261918,1724054736594,-474.3151,0.00010899,2]
[335261919,1724054736617,-322.06855872,0.00010899,2]
[335261920,1724054736639,-245.97663512,0.000109,2]
[335261921,1724054736662,-606.29,0.000109,2]
[335261922,1724054736685,-245.97663512,0.000109,2]
[335261923,1724054736708,-760.49,0.00010959,2]
[335261924,1724054736731,-495.03,0.00010989,2]
[335261925,1724054736755,-495.03,0.00010989,2]
[335261926,1724054736777,-495.03,0.00010989,2]
[335261927,1724054736800,-150.0,0.00010989,2]
[335261928,1724054736822,-495.03,0.0001099,2]
[335261929,1724054736845,-495.03,0.0001099,2]
[335261930,1724054736867,-495.03,0.0001099,2]
[335261931,1724054736889,-495.03,0.0001099,2]
[335261932,1724054736912,-495.03,0.0001099,2]
[335261933,1724054736934,-495.03,0.0001099,2]
[335261934,1724054736956,-495.03,0.0001099,2]
[335261935,1724054736978,-495.03,0.0001099,2]
[335261936,1724054737000,-495.03,0.0001099,2]
[335261937,1724054737021,-495.03,0.0001099,2]
[335261938,1724054737043,-495.03,0.0001099,2]
[335261939,1724054737064,-495.03,0.0001099,2]
[335261940,1724054737085,-495.03,0.0001099,2]
[335261941,1724054737107,-495.03,0.0001099,2]
[335261942,1724054737128,-495.03,0.0001099,2]
[335261943,1724054737150,-495.03,0.0001099,2]
[335261944,1724054737172,-495.03,0.0001099,2]
[335261945,1724054737193,-495.03,0.0001099,2]
[335261946,1724054737216,-495.03,0.0001099,2]
[335261947,1724054737238,-495.03,0.0001099,2]
[335261948,1724054737260,-495.03,0.0001099,2]
[335261949,1724054737281,-495.03,0.0001099,2]
[335261950,1724054737303,-495.03,0.0001099,2]
[335261951,1724054737324,-495.03,0.0001099,2]
[335261952,1724054737347,-495.03,0.0001099,2]
[335261953,1724054737369,-495.03,0.0001099,2]
[335261955,1724054737391,-495.03,0.0001099,2]
[335261956,1724054737413,-495.03,0.0001099,2]
[335261957,1724054737437,-495.03,0.0001099,2]
[335261958,1724054737460,-495.03,0.0001099,2]
[335261959,1724054737482,-495.03,0.0001099,2]
[335261960,1724054737505,-495.03,0.0001099,2]
[335261961,1724054737527,-495.03,0.0001099,2]
[335261962,1724054737549,-495.03,0.0001099,2]
[335261963,1724054737571,-495.03,0.0001099,2]
[335261964,1724054737592,-495.03,0.0001099,2]
[335261965,1724054737614,-495.03,0.0001099,2]
[335261966,1724054737635,-495.03,0.0001099,2]
[335261967,1724054737657,-495.03,0.0001099,2]
[335261968,1724054737680,-495.03,0.0001099,2]
[335261969,1724054737702,-495.03,0.0001099,2]
[335261970,1724054737725,-495.03,0.0001099,2]
[335261971,1724054737747,-495.03,0.0001099,2]
[335261972,1724054737769,-495.03,0.0001099,2]
[335261973,1724054737792,-495.03,0.0001099,2]
[335261974,1724054737815,-495.03,0.0001099,2]
[335261975,1724054737842,-495.03,0.0001099,2]
[335261976,1724054737865,-495.03,0.0001099,2]
[335261977,1724054737886,-495.03,0.0001099,2]
[335261978,1724054737909,-495.03,0.0001099,2]
[335261979,1724054737933,-495.03,0.0001099,2]
[335261980,1724054737957,-495.03,0.0001099,2]
[335261981,1724054737979,-260.29463461,0.0001099,2]
[335262012,1724055031917,-758.08,0.00010215,2]
[335262014,1724055031928,-237.79545876,0.00010499,2]
[335262019,1724055032024,-352.47454124,0.00010499,2]
[335262020,1724055032034,-150.0,0.0001086,2]
[335262021,1724055032044,-499.81932776,0.00010898,2]
[335262047,1724055032656,-0.50547552,0.00010898,2]
[335262048,1724055032667,-404.0,0.00010898,2]
[335262049,1724055032679,-621.77146932,0.00010898,2]
[335262050,1724055032690,-883.97785601,0.00010898,2]
[335262051,1724055032701,-450.25,0.00010898,2]
[335262052,1724055032714,-2059.03725129,0.00010898,2]
[335262053,1724055032726,-677.01,0.00010898,2]
[335262054,1724055032737,-2350.58188948,0.00010898,2]
[335262056,1724055037858,-1879.79073718,0.00010898,2]
[335262057,1724055037964,-5258.359312,0.00010898,2]
[335262058,1724055038018,-379.72846044,0.00010898,2]
[335262059,1724055038072,-353.01173433,0.00010898,2]
[335262060,1724055038084,-735.25,0.00010898,2]
[335262061,1724055038178,-12468.34098667,0.00010898,2]
[335262062,1724055038189,-306.9357,0.00010898,2]
[335262063,1724055038199,-1416.6197,0.00010898,2]
[335262064,1724055038209,-8511.0112,0.00010898,2]
[335262065,1724055038220,-213.4978,0.00010898,2]
[335262066,1724055038230,-308.93384663,0.00010899,2]
[335262068,1724055038240,-308.93384661,0.00010899,2]
[335262070,1724055038249,-308.93384661,0.000109,2]
[335262071,1724055038258,-308.93384661,0.000109,2]
[335262073,1724055038267,-300.13681126,0.0001099,2]
[335262075,1724055038276,-341.14193703,0.0001099,4]
[335262076,1724055038285,-150.0,0.0001099,2]
[335262078,1724055038295,-162.7683787,0.0001099,2]
[335262079,1724055038304,-1485.43868901,0.00010993,2]
[335262080,1724055038314,-374.85715292,0.00010997,2]
[335262081,1724055038323,-500.0,0.00010997,2]
[335262082,1724055038334,-500.0,0.00010997,2]
[335262084,1724055038346,-500.0,0.00010997,2]
[335262086,1724055038359,-500.0,0.00010997,2]
[335262087,1724055038371,-500.0,0.00010997,2]
[335262088,1724055038382,-533.69322272,0.00010997,2]
[335262089,1724055038393,-500.0,0.00010997,2]
[335262090,1724055038404,-200.91515834,0.00010997,2]
[335262169,1724055043766,-424.93484166,0.00010997,2]
[335262170,1724055043776,-614.81842237,0.00010997,2]
[335262171,1724055043786,-518.48251517,0.00010997,2]
[335262172,1724055043798,-500.0,0.00010997,2]
[335262173,1724055043809,-500.0,0.00010997,2]
[335262174,1724055043819,-439.19860705,0.00010997,2]
[335262175,1724055043829,-5040.0434651,0.00010997,2]
[335262176,1724055043840,-499.53344438,0.00010997,2]
[335262177,1724055043850,-514.76667388,0.00010997,2]
[335262178,1724055043861,-500.0,0.00010997,2]
[335262179,1724055043872,-405.42754273,0.00010997,2]
[335262234,1724055050075,-115.67505356,0.00010997,2]
[335262235,1724055050085,-512.63646757,0.00010997,2]
[335262236,1724055050095,-529.7187017,0.00010997,2]
[335262237,1724055050104,-579.69087162,0.00010997,2]
[335262238,1724055050113,-513.84873261,0.00010997,2]
[335262239,1724055050123,-530.84242657,0.00010997,2]
[335262240,1724055050132,-41.82724681,0.00010997,2]
[335262248,1724055184203,208.14,8.264e-05,2]
[335262280,1724055425636,1580.96175035,9.901e-05,2]
[335262289,1724055619652,211.55,9.857e-05,2]
[335262291,1724055657974,507.62,9.901e-05,2]
[335262294,1724055742297,345.0,9.901e-05,2]
[335262295,1724055743100,205.43,8.219e-05,2]
[335262297,1724055857906,580.13,9.857e-05,2]
[335262299,1724056020684,213.97439492,9.857e-05,2]
[335262300,1724056021657,606.47,9.869e-05,2]
[335262301,1724056054571,157.17,9.857e-05,2]
[335262302,1724056108588,211.56,9.793e-05,2]
[335262303,1724056201098,202.85,8.219e-05,2]
[335262320,1724056232077,-166.05,9.985e-05,2]
[335262322,1724056232087,-1050.0,0.0001,2]
[335262324,1724056232097,-1724.55584436,0.0001,2]
[335262326,1724056232107,-383.4,0.00010361,2]
[335262327,1724056232116,-393.53,0.00010464,2]
[335262328,1724056232126,-202.85,0.00010465,2]
[335262329,1724056232136,-300.0,0.00010468,2]
[335262330,1724056232145,-150.0,0.00010468,2]
[335262331,1724056232155,-52413.0,0.00010469,2]
[335262332,1724056232164,-944.13,0.000105,2]
[335262333,1724056232174,-421.32,0.000105,2]
[335262334,1724056232183,-425.44,0.000105,2]